fUST/lending_fUST_20260520
["ID","MTS","AMOUNT","RATE_DAILY","PERIOD"]
[422700445,1779267040000,-500.0,8.219e-05,2]
[422700794,1779267043000,-209.0340857,8.219e-05,2]
[422700792,1779267043000,-152.0,7.819e-05,7]
[422701182,1779267046000,-151.0,8.219e-05,2]
[422701172,1779267046000,-500.0,8.219e-05,2]
[422701176,1779267046000,-151.0,8.219e-05,2]
[422701180,1779267046000,-447.23511547,8.219e-05,2]
[422701164,1779267046000,-100.60825142,8.219e-05,2]
[422701178,1779267046000,-52.76488453,8.219e-05,2]
[422701170,1779267046000,-2434.14,8.219e-05,2]
[422701168,1779267046000,-1998.81,8.219e-05,2]
[422701166,1779267046000,-371.822759,8.219e-05,2]
[422701195,1779267046000,-151.0,8.219e-05,2]
[422701192,1779267046000,-151.0,8.219e-05,2]
[422701207,1779267046000,-151.0,8.219e-05,2]
[422701197,1779267046000,-151.0,8.219e-05,2]
[422701200,1779267046000,-151.0,8.219e-05,2]
[422701199,1779267046000,-151.0,8.219e-05,2]
[422701188,1779267046000,-151.0,8.219e-05,2]
[422701186,1779267046000,-500.0,8.219e-05,2]
[422701191,1779267046000,-151.0,8.219e-05,2]
[422701201,1779267046000,-151.0,8.219e-05,2]
[422701203,1779267046000,-151.0,8.219e-05,2]
[422701202,1779267046000,-151.0,8.219e-05,2]
[422701205,1779267046000,-151.0,8.219e-05,2]
[422701184,1779267046000,-500.0,8.219e-05,2]
[422701249,1779267047000,-427.871953,8.219e-05,2]
[422701250,1779267047000,-427.871953,8.219e-05,2]
[422701248,1779267047000,-427.871953,8.219e-05,2]
[422701246,1779267047000,-427.871953,8.219e-05,2]
[422701240,1779267047000,-206.68619092,8.219e-05,2]
[422701244,1779267047000,-427.871953,8.219e-05,2]
[422701239,1779267047000,-427.871953,8.219e-05,2]
[422701242,1779267047000,-427.871953,8.219e-05,2]
[422701251,1779267047000,-427.871953,8.219e-05,2]
[422701247,1779267047000,-427.871953,8.219e-05,2]
[422701252,1779267047000,-427.871953,8.219e-05,2]
[422701261,1779267047000,-420.61289646,8.219e-05,2]
[422701254,1779267047000,-427.871953,8.219e-05,2]
[422701256,1779267047000,-2145.48,8.219e-05,2]
[422701264,1779267047000,-2035.93,8.219e-05,2]
[422701266,1779267047000,-500.0,8.219e-05,2]
[422701232,1779267047000,-500.0,8.219e-05,2]
[422701265,1779267047000,-500.0,8.219e-05,2]
[422701255,1779267047000,-427.871947,8.219e-05,2]
[422701263,1779267047000,-707.63,8.219e-05,2]
[422701257,1779267047000,-2606.24,8.219e-05,2]
[422701262,1779267047000,-1811.66,8.219e-05,2]
[422701260,1779267047000,-5739.59710354,8.219e-05,2]
[422701258,1779267047000,-500.0,8.219e-05,2]
[422701253,1779267047000,-427.871953,8.219e-05,2]
[422701267,1779267047000,-1581.86,8.219e-05,2]
[422701229,1779267047000,-33.40926963,8.219e-05,2]
[422701234,1779267047000,-427.871953,8.219e-05,2]
[422701217,1779267047000,-500.0,8.219e-05,2]
[422701210,1779267047000,-151.0,8.219e-05,2]
[422701218,1779267047000,-500.0,8.219e-05,2]
[422701214,1779267047000,-500.0,8.219e-05,2]
[422701216,1779267047000,-217.634311,8.219e-05,2]
[422701212,1779267047000,-151.0,8.219e-05,2]
[422701209,1779267047000,-577.25,8.219e-05,2]
[422701213,1779267047000,-151.0,8.219e-05,2]
[422701211,1779267047000,-157.085398,8.219e-05,2]
[422701221,1779267047000,-500.0,8.219e-05,2]
[422701219,1779267047000,-728.62,8.219e-05,2]
[422701220,1779267047000,-500.0,8.219e-05,2]
[422701227,1779267047000,-1731.75073037,8.219e-05,2]
[422701223,1779267047000,-500.0,8.219e-05,2]
[422701222,1779267047000,-2765.52,8.219e-05,2]
[422701226,1779267047000,-1971.62,8.219e-05,2]
[422701225,1779267047000,-500.0,8.219e-05,2]
[422701224,1779267047000,-500.0,8.219e-05,2]
[422701230,1779267047000,-500.0,8.219e-05,2]
[422701231,1779267047000,-427.871953,8.219e-05,2]
[422701236,1779267047000,-427.871953,8.219e-05,2]
[422701233,1779267047000,-427.871953,8.219e-05,2]
[422701238,1779267047000,-427.871953,8.219e-05,2]
[422701237,1779267047000,-427.871953,8.219e-05,2]
[422701259,1779267047000,-500.0,8.219e-05,2]
[422701235,1779267047000,-427.871953,8.219e-05,2]
[422701269,1779267047000,-500.0,8.219e-05,2]
[422701303,1779267047000,-500.0,8.219e-05,2]
[422701304,1779267047000,-2118.12,8.219e-05,2]
[422701300,1779267047000,-187.062001,8.219e-05,2]
[422701298,1779267047000,-187.062001,8.219e-05,2]
[422701299,1779267047000,-187.062001,8.219e-05,2]
[422701301,1779267047000,-187.062001,8.219e-05,2]
[422701302,1779267047000,-187.062001,8.219e-05,2]
[422701306,1779267047000,-854.87,8.219e-05,2]
[422701318,1779267047000,-187.92,8.219e-05,2]
[422701305,1779267047000,-187.062001,8.219e-05,2]
[422701317,1779267047000,-500.0,8.219e-05,2]
[422701296,1779267047000,-187.062001,8.219e-05,2]
[422701307,1779267047000,-187.062001,8.219e-05,2]
[422701311,1779267047000,-187.062001,8.219e-05,2]
[422701314,1779267047000,-187.92,8.219e-05,2]
[422701309,1779267047000,-187.062001,8.219e-05,2]
[422701313,1779267047000,-187.062001,8.219e-05,2]
[422701315,1779267047000,-187.062001,8.219e-05,2]
[422701310,1779267047000,-187.92,8.219e-05,2]
[422701312,1779267047000,-187.92,8.219e-05,2]
[422701319,1779267047000,-187.062001,8.219e-05,2]
[422701321,1779267047000,-187.0620061,8.219e-05,2]
[422701320,1779267047000,-187.92,8.219e-05,2]
[422701268,1779267047000,-5416.25,8.219e-05,2]
[422701308,1779267047000,-187.92,8.219e-05,2]
[422701297,1779267047000,-187.062001,8.219e-05,2]
[422701316,1779267047000,-187.062001,8.219e-05,2]
[422701294,1779267047000,-187.062001,8.219e-05,2]
[422701270,1779267047000,-1290.92,8.219e-05,2]
[422701295,1779267047000,-187.062001,8.219e-05,2]
[422701271,1779267047000,-151.0,8.219e-05,2]
[422701276,1779267047000,-151.0,8.219e-05,2]
[422701278,1779267047000,-500.0,8.219e-05,2]
[422701279,1779267047000,-151.0,8.219e-05,2]
[422701275,1779267047000,-151.0,8.219e-05,2]
[422701274,1779267047000,-1095.66,8.219e-05,2]
[422701273,1779267047000,-151.0,8.219e-05,2]
[422701272,1779267047000,-151.0,8.219e-05,2]
[422701281,1779267047000,-151.0,8.219e-05,2]
[422701284,1779267047000,-151.0,8.219e-05,2]
[422701277,1779267047000,-151.0,8.219e-05,2]
[422701280,1779267047000,-151.0,8.219e-05,2]
[422701293,1779267047000,-187.062001,8.219e-05,2]
[422701282,1779267047000,-151.0,8.219e-05,2]
[422701286,1779267047000,-151.0,8.219e-05,2]
[422701285,1779267047000,-151.0,8.219e-05,2]
[422701290,1779267047000,-3100.26,8.219e-05,2]
[422701289,1779267047000,-177.177991,8.219e-05,2]
[422701292,1779267047000,-187.062001,8.219e-05,2]
[422701287,1779267047000,-151.0,8.219e-05,2]
[422701283,1779267047000,-151.0,8.219e-05,2]
[422701291,1779267047000,-500.0,8.219e-05,2]
[422701288,1779267047000,-151.0,8.219e-05,2]
[422701371,1779267048000,-819.7,8.219e-05,2]
[422701354,1779267048000,-500.0,8.219e-05,2]
[422701353,1779267048000,-500.0,8.219e-05,2]
[422701357,1779267048000,-729.74,8.219e-05,2]
[422701358,1779267048000,-886.04,8.219e-05,2]
[422701356,1779267048000,-500.0,8.219e-05,2]
[422701355,1779267048000,-500.0,8.219e-05,2]
[422701350,1779267048000,-500.0,8.219e-05,2]
[422701359,1779267048000,-500.0,8.219e-05,2]
[422701361,1779267048000,-1839.86,8.219e-05,2]
[422701372,1779267048000,-1455.72,8.219e-05,2]
[422701376,1779267048000,-2113.54,8.219e-05,2]
[422701373,1779267048000,-500.0,8.219e-05,2]
[422701362,1779267048000,-500.0,8.219e-05,2]
[422701364,1779267048000,-1035.4,8.219e-05,2]
[422701363,1779267048000,-636.98898963,8.219e-05,2]
[422701365,1779267048000,-843.98,8.219e-05,2]
[422701366,1779267048000,-2117.9,8.219e-05,2]
[422701370,1779267048000,-1930.62,8.219e-05,2]
[422701367,1779267048000,-586.84,8.219e-05,2]
[422701368,1779267048000,-5533.59,8.219e-05,2]
[422701369,1779267048000,-4822.92,8.219e-05,2]
[422701374,1779267048000,-500.0,8.219e-05,2]
[422701347,1779267048000,-2782.6,8.219e-05,2]
[422701360,1779267048000,-500.0,8.219e-05,2]
[422701352,1779267048000,-1348.41,8.219e-05,2]
[422701324,1779267048000,-187.92,8.219e-05,2]
[422701348,1779267048000,-500.0,8.219e-05,2]
[422701322,1779267048000,-500.0,8.219e-05,2]
[422701377,1779267048000,-500.0,8.219e-05,2]
[422701323,1779267048000,-187.92,8.219e-05,2]
[422701327,1779267048000,-187.92,8.219e-05,2]
[422701326,1779267048000,-500.0,8.219e-05,2]
[422701325,1779267048000,-187.92,8.219e-05,2]
[422701328,1779267048000,-187.92,8.219e-05,2]
[422701331,1779267048000,-187.92,8.219e-05,2]
[422701330,1779267048000,-187.92,8.219e-05,2]
[422701329,1779267048000,-187.92,8.219e-05,2]
[422701332,1779267048000,-187.92,8.219e-05,2]
[422701334,1779267048000,-187.92,8.219e-05,2]
[422701351,1779267048000,-2963.33,8.219e-05,2]
[422701341,1779267048000,-500.0,8.219e-05,2]
[422701338,1779267048000,-187.92,8.219e-05,2]
[422701333,1779267048000,-187.92,8.219e-05,2]
[422701335,1779267048000,-500.0,8.219e-05,2]
[422701344,1779267048000,-31652.06,8.219e-05,2]
[422701336,1779267048000,-187.92,8.219e-05,2]
[422701337,1779267048000,-500.0,8.219e-05,2]
[422701343,1779267048000,-500.0,8.219e-05,2]
[422701345,1779267048000,-3687.4186,8.219e-05,2]
[422701340,1779267048000,-187.92,8.219e-05,2]
[422701339,1779267048000,-500.0,8.219e-05,2]
[422701346,1779267048000,-1470.2,8.219e-05,2]
[422701349,1779267048000,-6500.11,8.219e-05,2]
[422701342,1779267048000,-531.14,8.219e-05,2]
[422701375,1779267048000,-500.0,8.219e-05,2]
[422701398,1779267048000,-300.0,8.279e-05,2]
[422701380,1779267048000,-500.0,8.219e-05,2]
[422701412,1779267048000,-152.0,8.33e-05,30]
[422701411,1779267048000,-152.0,8.303e-05,30]
[422701415,1779267048000,-1515.7378,8.493e-05,2]
[422701413,1779267048000,-152.0,8.33e-05,30]
[422701382,1779267048000,-500.0,8.219e-05,2]
[422701416,1779267048000,-940.9248,8.493e-05,2]
[422701417,1779267048000,-513.5736,8.493e-05,2]
[422701418,1779267048000,-856.7052,8.493e-05,2]
[422701420,1779267048000,-500.0,8.493e-05,2]
[422701421,1779267048000,-500.0,8.493e-05,2]
[422701419,1779267048000,-500.0,8.493e-05,2]
[422701422,1779267048000,-679.03,8.493e-05,2]
[422701424,1779267048000,-500.0,8.493e-05,2]
[422701431,1779267048000,-526.72,8.493e-05,2]
[422701423,1779267048000,-1310.17,8.493e-05,2]
[422701434,1779267048000,-673.31,8.493e-05,2]
[422701433,1779267048000,-500.0,8.493e-05,2]
[422701427,1779267048000,-500.0,8.493e-05,2]
[422701425,1779267048000,-500.0,8.493e-05,2]
[422701429,1779267048000,-500.0,8.493e-05,2]
[422701428,1779267048000,-500.0,8.493e-05,2]
[422701430,1779267048000,-500.0,8.493e-05,2]
[422701426,1779267048000,-500.0,8.493e-05,2]
[422701432,1779267048000,-537.78,8.493e-05,2]
[422701435,1779267048000,-500.0,8.493e-05,2]
[422701408,1779267048000,-600.0,8.28e-05,2]
[422701406,1779267048000,-300.0,8.279e-05,2]
[422701414,1779267048000,-151.0,8.433e-05,2]
[422701407,1779267048000,-300.0,8.279e-05,2]
[422701381,1779267048000,-500.0,8.219e-05,2]
[422701379,1779267048000,-500.0,8.219e-05,2]
[422701383,1779267048000,-500.0,8.219e-05,2]
[422701378,1779267048000,-500.0,8.219e-05,2]
[422701385,1779267048000,-387.88771919,8.219e-05,2]
[422701384,1779267048000,-500.0,8.219e-05,2]
[422701410,1779267048000,-152.0,8.29e-05,30]
[422701396,1779267048000,-300.0,8.279e-05,2]
[422701397,1779267048000,-300.0,8.279e-05,2]
[422701386,1779267048000,-500.0,8.219e-05,2]
[422701393,1779267048000,-300.0,8.279e-05,2]
[422701388,1779267048000,-797.77,8.219e-05,2]
[422701394,1779267048000,-300.0,8.279e-05,2]
[422701387,1779267048000,-500.0,8.219e-05,2]
[422701389,1779267048000,-500.0,8.219e-05,2]
[422701392,1779267048000,-152.0,8.267e-05,30]
[422701401,1779267048000,-300.0,8.279e-05,2]
[422701405,1779267048000,-300.0,8.279e-05,2]
[422701400,1779267048000,-300.0,8.279e-05,2]
[422701399,1779267048000,-300.0,8.279e-05,2]
[422701404,1779267048000,-300.0,8.279e-05,2]
[422701409,1779267048000,-152.0,8.281e-05,30]
[422701402,1779267048000,-300.0,8.279e-05,2]
[422701390,1779267048000,-500.0,8.219e-05,2]
[422701391,1779267048000,-1768.8658947,8.219e-05,2]
[422701395,1779267048000,-300.0,8.279e-05,2]
[422701403,1779267048000,-300.0,8.279e-05,2]
[422701441,1779267049000,-500.0,8.493e-05,2]
[422701447,1779267049000,-500.0,8.493e-05,2]
[422701446,1779267049000,-1149.32,8.493e-05,2]
[422701445,1779267049000,-500.0,8.493e-05,2]
[422701440,1779267049000,-500.0,8.493e-05,2]
[422701439,1779267049000,-500.0,8.493e-05,2]
[422701436,1779267049000,-500.0,8.493e-05,2]
[422701438,1779267049000,-500.0,8.493e-05,2]
[422701443,1779267049000,-500.0,8.493e-05,2]
[422701437,1779267049000,-500.0,8.493e-05,2]
[422701442,1779267049000,-500.0,8.493e-05,2]
[422701451,1779267049000,-500.0,8.493e-05,2]
[422701444,1779267049000,-500.0,8.493e-05,2]
[422701448,1779267049000,-500.0,8.493e-05,2]
[422701459,1779267049000,-500.0,8.493e-05,2]
[422701449,1779267049000,-500.0,8.493e-05,2]
[422701452,1779267049000,-500.0,8.493e-05,2]
[422701463,1779267049000,-500.0,8.493e-05,2]
[422701461,1779267049000,-500.0,8.493e-05,2]
[422701462,1779267049000,-1265.43,8.493e-05,2]
[422701460,1779267049000,-1166.04,8.493e-05,2]
[422701464,1779267049000,-500.0,8.493e-05,2]
[422701465,1779267049000,-470.21918392,8.493e-05,2]
[422701456,1779267049000,-500.0,8.493e-05,2]
[422701458,1779267049000,-500.0,8.493e-05,2]
[422701455,1779267049000,-564.2,8.493e-05,2]
[422701454,1779267049000,-500.0,8.493e-05,2]
[422701453,1779267049000,-500.0,8.493e-05,2]
[422701450,1779267049000,-500.0,8.493e-05,2]
[422701457,1779267049000,-500.0,8.493e-05,2]
[422701470,1779267050000,-647.18,8.493e-05,2]
[422701467,1779267050000,-202.41081608,8.493e-05,2]
[422701475,1779267050000,-500.0,8.493e-05,2]
[422701473,1779267050000,-500.0,8.493e-05,2]
[422701472,1779267050000,-500.0,8.493e-05,2]
[422701474,1779267050000,-500.0,8.493e-05,2]
[422701471,1779267050000,-500.0,8.493e-05,2]
[422701476,1779267050000,-2830.85,8.493e-05,2]
[422701468,1779267050000,-500.0,8.493e-05,2]
[422701469,1779267050000,-500.0,8.493e-05,2]
[422701479,1779267050000,-500.0,8.493e-05,2]
[422701481,1779267050000,-544.53,8.493e-05,2]
[422701480,1779267050000,-507.52,8.493e-05,2]
[422701483,1779267050000,-546.41,8.493e-05,2]
[422701484,1779267050000,-507.19517364,8.493e-05,2]
[422701478,1779267050000,-500.0,8.493e-05,2]
[422701486,1779267050000,-267.09786573,8.493e-05,2]
[422701485,1779267050000,-431.55482636,8.493e-05,2]
[422701482,1779267050000,-552.25,8.493e-05,2]
[422701477,1779267050000,-803.14,8.493e-05,2]
[422701584,1779268232000,-152.0,7.816e-05,7]
[422701586,1779268232000,-152.0,7.816e-05,7]
[422701588,1779268232000,-464.66651364,7.832e-05,2]
[422701761,1779268238000,-98.43214563,7.832e-05,2]
[422701763,1779268238000,-500.0,7.879e-05,2]
[422701777,1779268238000,-497.1572085,8.118e-05,2]
[422701765,1779268238000,-161.70661154,8.073e-05,2]
[422701780,1779268238000,-500.0,8.118e-05,2]
[422701782,1779268238000,-397.85237545,8.118e-05,2]
[422701783,1779268238000,-300.0,8.118e-05,2]
[422701767,1779268238000,-160.0,8.073e-05,2]
[422701771,1779268238000,-766.43500783,8.073e-05,2]
[422701787,1779268238000,-3556.19026365,8.119e-05,2]
[422701775,1779268238000,-600.19039606,8.118e-05,2]
[422701786,1779268238000,-326.0,8.118e-05,2]
[422701773,1779268238000,-500.0,8.118e-05,2]
[422701798,1779268238000,-11488.39808707,8.119e-05,2]
[422701796,1779268238000,-1912.73418776,8.119e-05,2]
[422701801,1779268238000,-19646.57139666,8.119e-05,2]
[422701769,1779268238000,-160.0,8.073e-05,2]
[422702198,1779268247000,-152.0,7.815e-05,7]
[422702201,1779268247000,-33545.45458576,8.119e-05,2]
[422702200,1779268247000,-7858.04306603,8.119e-05,2]
[422702199,1779268247000,-1679.66948229,8.119e-05,2]
[422703674,1779269432000,-374.25614581,7.992e-05,2]
[422703670,1779269432000,-152.0,7.817e-05,7]
[422703662,1779269432000,-152.0,7.812e-05,7]
[422703666,1779269432000,-551.83668608,7.813e-05,2]
[422703664,1779269432000,-152.0,7.812e-05,7]
[422703672,1779269432000,-125.74385419,7.992e-05,2]
[422703668,1779269432000,-152.0,7.815e-05,7]
[422703676,1779269432000,-160.0,8.073e-05,2]
[422703680,1779269432000,-160.0,8.118e-05,2]
[422703689,1779269432000,-60.58165467,8.119e-05,2]
[422703682,1779269432000,-56.87064459,8.118e-05,2]
[422703691,1779269432000,-604.25309705,8.119e-05,2]
[422703685,1779269432000,-709.56436324,8.118e-05,2]
[422703687,1779269432000,-161.70661154,8.118e-05,2]
[422703678,1779269432000,-300.0,8.118e-05,2]
[422703992,1779269447000,-703.97930242,8.119e-05,2]
[422703991,1779269447000,-152.0,7.969e-05,7]
[422704003,1779269473000,-4142.73,8.119e-05,2]
[422704052,1779270560000,-158.24864703,7.066e-05,2]
[422704150,1779270632000,-152.0,7.892e-05,7]
[422704149,1779270632000,-104.08095653,7.442e-05,2]
[422704148,1779270632000,-443.50808708,7.442e-05,2]
[422704151,1779270632000,-145.67298545,7.892e-05,7]
[422704147,1779270632000,-18.59708577,7.066e-05,2]
[422704212,1779270643000,-652.63327733,8.016e-05,2]
[422704205,1779270643000,-152.0,7.894e-05,7]
[422704204,1779270643000,-6.32701455,7.892e-05,7]
[422704207,1779270643000,-152.0,7.91e-05,7]
[422704206,1779270643000,-152.0,7.894e-05,7]
[422704210,1779270643000,-300.0,8.016e-05,2]
[422704211,1779270643000,-537.36672267,8.016e-05,2]
[422704215,1779270643000,-537.6845,8.037e-05,2]
[422704208,1779270643000,-152.0,7.91e-05,7]
[422704214,1779270643000,-183.17827325,8.017e-05,2]
[422704213,1779270643000,-7867.80349579,8.017e-05,2]
[422704217,1779270643000,-250.0,8.102e-05,2]
[422704216,1779270643000,-557.5788265,8.092e-05,2]
[422704218,1779270643000,-805.55100948,8.117e-05,2]
[422704209,1779270643000,-500.0,7.99e-05,2]
[422704232,1779270646000,-519.91304161,8.118e-05,2]
[422704226,1779270646000,-10240.50340675,8.117e-05,2]
[422704228,1779270646000,-519.91304161,8.118e-05,2]
[422704227,1779270646000,-18989.56865803,8.117e-05,2]
[422704231,1779270646000,-519.91304161,8.118e-05,2]
[422704230,1779270646000,-519.91304161,8.118e-05,2]
[422704229,1779270646000,-519.91304161,8.118e-05,2]
[422704234,1779270646000,-519.91304161,8.118e-05,2]
[422704236,1779270646000,-519.91304161,8.118e-05,2]
[422704242,1779270646000,-519.91304161,8.118e-05,2]
[422704243,1779270646000,-519.91304161,8.118e-05,2]
[422704241,1779270646000,-519.91304161,8.118e-05,2]
[422704239,1779270646000,-519.91304161,8.118e-05,2]
[422704235,1779270646000,-519.91304161,8.118e-05,2]
[422704240,1779270646000,-519.91304161,8.118e-05,2]
[422704237,1779270646000,-519.91304161,8.118e-05,2]
[422704238,1779270646000,-519.91304161,8.118e-05,2]
[422704233,1779270646000,-519.91304161,8.118e-05,2]
[422704249,1779270647000,-10470.54858983,8.119e-05,2]
[422704247,1779270647000,-160.0,8.118e-05,2]
[422704248,1779270647000,-161.70661154,8.118e-05,2]
[422704246,1779270647000,-766.43500783,8.118e-05,2]
[422704245,1779270647000,-160.0,8.118e-05,2]
[422704244,1779270647000,-519.91304161,8.118e-05,2]
[422704265,1779271274000,-300.0,7.094e-05,2]
[422704266,1779271292000,-552.21674605,7.095e-05,2]
[422704268,1779271310000,-3596.05335302,7.095e-05,2]
[422704269,1779271328000,-552.21674605,7.095e-05,2]
[422704270,1779271345000,-3596.05335302,7.095e-05,2]
[422704271,1779271361000,-552.21674605,7.095e-05,2]
[422704272,1779271379000,-3596.05335302,7.095e-05,2]
[422704277,1779271397000,-552.21674605,7.095e-05,2]
[422704298,1779271748000,-300.0,7.236e-05,2]
[422704295,1779271748000,-300.0,7.235e-05,2]
[422704293,1779271748000,-6668.03620399,7.095e-05,2]
[422704296,1779271748000,-300.0,7.236e-05,2]
[422704294,1779271748000,-541.17241113,7.165e-05,2]
[422704297,1779271748000,-300.0,7.236e-05,2]
[422704299,1779271748000,-300.0,7.236e-05,2]
[422704301,1779271748000,-300.0,7.236e-05,2]
[422704300,1779271748000,-300.0,7.236e-05,2]
[422704303,1779271748000,-300.0,7.236e-05,2]
[422704302,1779271748000,-300.0,7.236e-05,2]
[422704308,1779271748000,-300.0,7.236e-05,2]
[422704309,1779271748000,-300.0,7.236e-05,2]
[422704307,1779271748000,-300.0,7.236e-05,2]
[422704311,1779271748000,-242.69395688,7.38e-05,2]
[422704306,1779271748000,-300.0,7.236e-05,2]
[422704310,1779271748000,-300.0,7.236e-05,2]
[422704305,1779271748000,-300.0,7.236e-05,2]
[422704304,1779271748000,-300.0,7.236e-05,2]
[422704314,1779271756000,-198.36259976,7.38e-05,2]
[422704378,1779271838000,-500.0,7.901e-05,2]
[422704383,1779271838000,-500.0,7.901e-05,2]
[422704381,1779271838000,-500.0,7.901e-05,2]
[422704388,1779271838000,-500.0,7.901e-05,2]
[422704389,1779271838000,-500.0,7.901e-05,2]
[422704391,1779271838000,-500.0,7.901e-05,2]
[422704387,1779271838000,-365.16808388,7.901e-05,2]
[422704367,1779271838000,-500.0,7.901e-05,2]
[422704375,1779271838000,-500.0,7.901e-05,2]
[422704376,1779271838000,-500.0,7.901e-05,2]
[422704365,1779271838000,-158.94344336,7.38e-05,2]
[422704384,1779271838000,-500.0,7.901e-05,2]
[422704363,1779271838000,-552.216746,6.83e-05,2]
[422704373,1779271838000,-500.0,7.901e-05,2]
[422704371,1779271838000,-500.0,7.901e-05,2]
[422704369,1779271838000,-152.01535541,7.901e-05,2]
[422704379,1779271838000,-500.0,7.901e-05,2]
[422704386,1779271838000,-500.0,7.901e-05,2]
[422704390,1779271838000,-500.0,7.901e-05,2]
[422704393,1779271838000,-500.0,7.901e-05,2]
[422704409,1779271838000,-2885.14825558,7.902e-05,2]
[422704410,1779271838000,-5250.75684514,7.902e-05,2]
[422704407,1779271838000,-36999.96524763,7.902e-05,2]
[422704406,1779271838000,-300.0,7.901e-05,2]
[422704405,1779271838000,-500.0,7.901e-05,2]
[422704402,1779271838000,-500.0,7.901e-05,2]
[422704398,1779271838000,-500.0,7.901e-05,2]
[422704394,1779271838000,-500.0,7.901e-05,2]
[422704396,1779271838000,-500.0,7.901e-05,2]
[422704400,1779271838000,-500.0,7.901e-05,2]
[422704401,1779271838000,-161.47821125,7.901e-05,2]
[422704399,1779271838000,-500.0,7.901e-05,2]
[422704397,1779271838000,-349.75975372,7.901e-05,2]
[422704404,1779271838000,-500.0,7.901e-05,2]
[422704403,1779271838000,-500.0,7.901e-05,2]
[422704395,1779271838000,-500.0,7.901e-05,2]
[422704392,1779271838000,-500.0,7.901e-05,2]
[422704408,1779271838000,-6501.63619066,7.902e-05,2]
[422704385,1779271838000,-500.0,7.901e-05,2]
[422704422,1779271843000,-3779.59278772,7.902e-05,2]
[422704433,1779271846000,-34299.3071132,7.902e-05,2]
[422704432,1779271846000,-9844.04215669,7.902e-05,2]
[422704451,1779272803000,1472.45767039,0.00014027,120]
[422704450,1779272803000,1472.45767039,0.00013989,120]
[422704458,1779272953000,-149.56765256,7.6e-05,10]
[422704457,1779272953000,-8378.45889283,7.6e-05,2]
[422704456,1779272953000,-537.50789861,7.6e-05,2]
[422704455,1779272953000,-300.0,7.599e-05,2]
[422704459,1779272959000,-8270.29367017,7.6e-05,10]
[422704462,1779273032000,-581.3955505,7.741e-05,2]
[422704461,1779273032000,-370.54186741,7.6e-05,10]
[422704472,1779273032000,-2175.26425871,7.741e-05,2]
[422704470,1779273032000,-269.08724583,7.741e-05,2]
[422704463,1779273032000,-862.59041789,7.741e-05,2]
[422704545,1779273040000,-304.0,7.741e-05,2]
[422704553,1779273043000,-883.33,7.741e-05,2]
[422704552,1779273043000,-1355.82253593,7.741e-05,2]
[422704551,1779273043000,-1992.87499969,7.741e-05,2]
[422704564,1779273046000,-300.0,7.8e-05,2]
[422704562,1779273046000,-7947.34323568,7.741e-05,2]
[422704567,1779273046000,-4148.27009907,7.801e-05,2]
[422704566,1779273046000,-675.7404708,7.801e-05,2]
[422704565,1779273046000,-1132.83582848,7.801e-05,2]
[422704570,1779273183000,84.5815777,3.504e-05,2]
[422704569,1779273183000,145.9880213,3.504e-05,2]
[422704573,1779273247000,167.0497,0.00017808,120]
[422704575,1779273255000,-720.42693525,7.493e-05,2]
[422704574,1779273255000,-300.0,7.492e-05,2]
[422704576,1779273258000,-283.60973733,7.493e-05,2]
[422704577,1779273259000,-279.61434068,7.493e-05,2]
[422704609,1779274147000,-300.0,7.492e-05,2]
[422704610,1779274147000,-1200.0,7.492e-05,2]
[422704607,1779274147000,-449.66228844,7.326e-05,2]
[422704611,1779274147000,-300.0,7.492e-05,2]
[422704612,1779274147000,-346.12593164,7.493e-05,2]
[422704608,1779274147000,-542.57437968,7.409e-05,2]
[422704626,1779274156000,-500.0,7.64e-05,2]
[422704615,1779274156000,-500.0,7.493e-05,2]
[422704616,1779274156000,-500.0,7.493e-05,2]
[422704614,1779274156000,-4830.3493208,7.493e-05,2]
[422704617,1779274156000,-500.0,7.493e-05,2]
[422704618,1779274156000,-500.0,7.493e-05,2]
[422704619,1779274156000,-500.0,7.493e-05,2]
[422704623,1779274156000,-500.0,7.493e-05,2]
[422704621,1779274156000,-500.0,7.493e-05,2]
[422704622,1779274156000,-500.0,7.493e-05,2]
[422704624,1779274156000,-500.0,7.493e-05,2]